{"text_format":"3","workbook":"xlsx","n_sheets":1,"sheets":["Daftar Inventaris"],"not_rendered":{"images":1,"defined_names":3},"read":"whole","date_system":"1900"}

{"sheet":"Daftar Inventaris","index":0,"n_rows":28,"n_cols":13,"rows_kept":28}
[{"$nulls":12}," "]
[{"$nulls":10},"Sorot item untuk menyusun ulang?","Ya"]
[null,"Untuk Pengurutan Ulang","ID Inventaris","Nama","Deskripsi","Harga Satuan","Kuantitas dalam Stok","Nilai Inventaris","Tingkat Penyusunan Ulang","Waktu Penyusunan Ulang dalam Hari","Kuantitas dalam Pengurutan Ulang","Dihentikan?"]
[null,{"$f":"IFERROR((Inventory_List_Table[[#This Row],[Kuantitas dalam Stok]]<=Inventory_List_Table[[#This Row],[Tingkat Penyusunan Ulang]])*(Inventory_List_Table[[#This Row],[Dihentikan?]]=\"\")*MenyorotNilai,0)","v":1},"IN0001","Item 1","Desk 1",{"v":51,"d":"Rp51.00"},25,{"$f":"Inventory_List_Table[[#This Row],[Harga Satuan]]*Inventory_List_Table[[#This Row],[Kuantitas dalam Stok]]","v":{"v":1275,"d":"Rp1,275.00"}},29,13,50]
[null,{"$f":"IFERROR((Inventory_List_Table[[#This Row],[Kuantitas dalam Stok]]<=Inventory_List_Table[[#This Row],[Tingkat Penyusunan Ulang]])*(Inventory_List_Table[[#This Row],[Dihentikan?]]=\"\")*MenyorotNilai,0)","v":1},"IN0002","Item 2","Desk 2",{"v":93,"d":"Rp93.00"},132,{"$f":"Inventory_List_Table[[#This Row],[Harga Satuan]]*Inventory_List_Table[[#This Row],[Kuantitas dalam Stok]]","v":{"v":12276,"d":"Rp12,276.00"}},231,4,50]
[null,{"$f":"IFERROR((Inventory_List_Table[[#This Row],[Kuantitas dalam Stok]]<=Inventory_List_Table[[#This Row],[Tingkat Penyusunan Ulang]])*(Inventory_List_Table[[#This Row],[Dihentikan?]]=\"\")*MenyorotNilai,0)","v":0},"IN0003","Item 3","Desk 3",{"v":57,"d":"Rp57.00"},151,{"$f":"Inventory_List_Table[[#This Row],[Harga Satuan]]*Inventory_List_Table[[#This Row],[Kuantitas dalam Stok]]","v":{"v":8607,"d":"Rp8,607.00"}},114,11,150]
[null,{"$f":"IFERROR((Inventory_List_Table[[#This Row],[Kuantitas dalam Stok]]<=Inventory_List_Table[[#This Row],[Tingkat Penyusunan Ulang]])*(Inventory_List_Table[[#This Row],[Dihentikan?]]=\"\")*MenyorotNilai,0)","v":0},"IN0004","Item 4","Desk 4",{"v":19,"d":"Rp19.00"},186,{"$f":"Inventory_List_Table[[#This Row],[Harga Satuan]]*Inventory_List_Table[[#This Row],[Kuantitas dalam Stok]]","v":{"v":3534,"d":"Rp3,534.00"}},158,6,50]
[null,{"$f":"IFERROR((Inventory_List_Table[[#This Row],[Kuantitas dalam Stok]]<=Inventory_List_Table[[#This Row],[Tingkat Penyusunan Ulang]])*(Inventory_List_Table[[#This Row],[Dihentikan?]]=\"\")*MenyorotNilai,0)","v":0},"IN0005","Item 5","Desk 5",{"v":75,"d":"Rp75.00"},62,{"$f":"Inventory_List_Table[[#This Row],[Harga Satuan]]*Inventory_List_Table[[#This Row],[Kuantitas dalam Stok]]","v":{"v":4650,"d":"Rp4,650.00"}},39,12,50]
[null,{"$f":"IFERROR((Inventory_List_Table[[#This Row],[Kuantitas dalam Stok]]<=Inventory_List_Table[[#This Row],[Tingkat Penyusunan Ulang]])*(Inventory_List_Table[[#This Row],[Dihentikan?]]=\"\")*MenyorotNilai,0)","v":1},"IN0006","Item 6","Desk 6",{"v":11,"d":"Rp11.00"},5,{"$f":"Inventory_List_Table[[#This Row],[Harga Satuan]]*Inventory_List_Table[[#This Row],[Kuantitas dalam Stok]]","v":{"v":55,"d":"Rp55.00"}},9,13,150]
[null,{"$f":"IFERROR((Inventory_List_Table[[#This Row],[Kuantitas dalam Stok]]<=Inventory_List_Table[[#This Row],[Tingkat Penyusunan Ulang]])*(Inventory_List_Table[[#This Row],[Dihentikan?]]=\"\")*MenyorotNilai,0)","v":0},"IN0007","Item 7","Desk 7",{"v":56,"d":"Rp56.00"},58,{"$f":"Inventory_List_Table[[#This Row],[Harga Satuan]]*Inventory_List_Table[[#This Row],[Kuantitas dalam Stok]]","v":{"v":3248,"d":"Rp3,248.00"}},109,7,100,"Ya"]
[null,{"$f":"IFERROR((Inventory_List_Table[[#This Row],[Kuantitas dalam Stok]]<=Inventory_List_Table[[#This Row],[Tingkat Penyusunan Ulang]])*(Inventory_List_Table[[#This Row],[Dihentikan?]]=\"\")*MenyorotNilai,0)","v":1},"IN0008","Item 8","Desk 8",{"v":38,"d":"Rp38.00"},101,{"$f":"Inventory_List_Table[[#This Row],[Harga Satuan]]*Inventory_List_Table[[#This Row],[Kuantitas dalam Stok]]","v":{"v":3838,"d":"Rp3,838.00"}},162,3,100]
[null,{"$f":"IFERROR((Inventory_List_Table[[#This Row],[Kuantitas dalam Stok]]<=Inventory_List_Table[[#This Row],[Tingkat Penyusunan Ulang]])*(Inventory_List_Table[[#This Row],[Dihentikan?]]=\"\")*MenyorotNilai,0)","v":0},"IN0009","Item 9","Desk 9",{"v":59,"d":"Rp59.00"},122,{"$f":"Inventory_List_Table[[#This Row],[Harga Satuan]]*Inventory_List_Table[[#This Row],[Kuantitas dalam Stok]]","v":{"v":7198,"d":"Rp7,198.00"}},82,3,150]
[null,{"$f":"IFERROR((Inventory_List_Table[[#This Row],[Kuantitas dalam Stok]]<=Inventory_List_Table[[#This Row],[Tingkat Penyusunan Ulang]])*(Inventory_List_Table[[#This Row],[Dihentikan?]]=\"\")*MenyorotNilai,0)","v":1},"IN0010","Item 10","Desk 10",{"v":50,"d":"Rp50.00"},175,{"$f":"Inventory_List_Table[[#This Row],[Harga Satuan]]*Inventory_List_Table[[#This Row],[Kuantitas dalam Stok]]","v":{"v":8750,"d":"Rp8,750.00"}},283,8,150]
[null,{"$f":"IFERROR((Inventory_List_Table[[#This Row],[Kuantitas dalam Stok]]<=Inventory_List_Table[[#This Row],[Tingkat Penyusunan Ulang]])*(Inventory_List_Table[[#This Row],[Dihentikan?]]=\"\")*MenyorotNilai,0)","v":1},"IN0011","Item 11","Desk 11",{"v":59,"d":"Rp59.00"},176,{"$f":"Inventory_List_Table[[#This Row],[Harga Satuan]]*Inventory_List_Table[[#This Row],[Kuantitas dalam Stok]]","v":{"v":10384,"d":"Rp10,384.00"}},229,1,100]
[null,{"$f":"IFERROR((Inventory_List_Table[[#This Row],[Kuantitas dalam Stok]]<=Inventory_List_Table[[#This Row],[Tingkat Penyusunan Ulang]])*(Inventory_List_Table[[#This Row],[Dihentikan?]]=\"\")*MenyorotNilai,0)","v":1},"IN0012","Item 12","Desk 12",{"v":18,"d":"Rp18.00"},22,{"$f":"Inventory_List_Table[[#This Row],[Harga Satuan]]*Inventory_List_Table[[#This Row],[Kuantitas dalam Stok]]","v":{"v":396,"d":"Rp396.00"}},36,12,50]
[null,{"$f":"IFERROR((Inventory_List_Table[[#This Row],[Kuantitas dalam Stok]]<=Inventory_List_Table[[#This Row],[Tingkat Penyusunan Ulang]])*(Inventory_List_Table[[#This Row],[Dihentikan?]]=\"\")*MenyorotNilai,0)","v":1},"IN0013","Item 13","Desk 13",{"v":26,"d":"Rp26.00"},72,{"$f":"Inventory_List_Table[[#This Row],[Harga Satuan]]*Inventory_List_Table[[#This Row],[Kuantitas dalam Stok]]","v":{"v":1872,"d":"Rp1,872.00"}},102,9,100]
[null,{"$f":"IFERROR((Inventory_List_Table[[#This Row],[Kuantitas dalam Stok]]<=Inventory_List_Table[[#This Row],[Tingkat Penyusunan Ulang]])*(Inventory_List_Table[[#This Row],[Dihentikan?]]=\"\")*MenyorotNilai,0)","v":1},"IN0014","Item 14","Desk 14",{"v":42,"d":"Rp42.00"},62,{"$f":"Inventory_List_Table[[#This Row],[Harga Satuan]]*Inventory_List_Table[[#This Row],[Kuantitas dalam Stok]]","v":{"v":2604,"d":"Rp2,604.00"}},83,2,100]
[null,{"$f":"IFERROR((Inventory_List_Table[[#This Row],[Kuantitas dalam Stok]]<=Inventory_List_Table[[#This Row],[Tingkat Penyusunan Ulang]])*(Inventory_List_Table[[#This Row],[Dihentikan?]]=\"\")*MenyorotNilai,0)","v":0},"IN0015","Item 15","Desk 15",{"v":32,"d":"Rp32.00"},46,{"$f":"Inventory_List_Table[[#This Row],[Harga Satuan]]*Inventory_List_Table[[#This Row],[Kuantitas dalam Stok]]","v":{"v":1472,"d":"Rp1,472.00"}},23,15,50]
[null,{"$f":"IFERROR((Inventory_List_Table[[#This Row],[Kuantitas dalam Stok]]<=Inventory_List_Table[[#This Row],[Tingkat Penyusunan Ulang]])*(Inventory_List_Table[[#This Row],[Dihentikan?]]=\"\")*MenyorotNilai,0)","v":1},"IN0016","Item 16","Desk 16",{"v":90,"d":"Rp90.00"},96,{"$f":"Inventory_List_Table[[#This Row],[Harga Satuan]]*Inventory_List_Table[[#This Row],[Kuantitas dalam Stok]]","v":{"v":8640,"d":"Rp8,640.00"}},180,3,50]
[null,{"$f":"IFERROR((Inventory_List_Table[[#This Row],[Kuantitas dalam Stok]]<=Inventory_List_Table[[#This Row],[Tingkat Penyusunan Ulang]])*(Inventory_List_Table[[#This Row],[Dihentikan?]]=\"\")*MenyorotNilai,0)","v":0},"IN0017","Item 17","Desk 17",{"v":97,"d":"Rp97.00"},57,{"$f":"Inventory_List_Table[[#This Row],[Harga Satuan]]*Inventory_List_Table[[#This Row],[Kuantitas dalam Stok]]","v":{"v":5529,"d":"Rp5,529.00"}},98,12,50,"Ya"]
[null,{"$f":"IFERROR((Inventory_List_Table[[#This Row],[Kuantitas dalam Stok]]<=Inventory_List_Table[[#This Row],[Tingkat Penyusunan Ulang]])*(Inventory_List_Table[[#This Row],[Dihentikan?]]=\"\")*MenyorotNilai,0)","v":1},"IN0018","Item 18","Desk 18",{"v":12,"d":"Rp12.00"},6,{"$f":"Inventory_List_Table[[#This Row],[Harga Satuan]]*Inventory_List_Table[[#This Row],[Kuantitas dalam Stok]]","v":{"v":72,"d":"Rp72.00"}},7,13,50]
[null,{"$f":"IFERROR((Inventory_List_Table[[#This Row],[Kuantitas dalam Stok]]<=Inventory_List_Table[[#This Row],[Tingkat Penyusunan Ulang]])*(Inventory_List_Table[[#This Row],[Dihentikan?]]=\"\")*MenyorotNilai,0)","v":1},"IN0019","Item 19","Desk 19",{"v":82,"d":"Rp82.00"},143,{"$f":"Inventory_List_Table[[#This Row],[Harga Satuan]]*Inventory_List_Table[[#This Row],[Kuantitas dalam Stok]]","v":{"v":11726,"d":"Rp11,726.00"}},164,12,150]
[null,{"$f":"IFERROR((Inventory_List_Table[[#This Row],[Kuantitas dalam Stok]]<=Inventory_List_Table[[#This Row],[Tingkat Penyusunan Ulang]])*(Inventory_List_Table[[#This Row],[Dihentikan?]]=\"\")*MenyorotNilai,0)","v":0},"IN0020","Item 20","Desk 20",{"v":16,"d":"Rp16.00"},124,{"$f":"Inventory_List_Table[[#This Row],[Harga Satuan]]*Inventory_List_Table[[#This Row],[Kuantitas dalam Stok]]","v":{"v":1984,"d":"Rp1,984.00"}},113,14,50]
[null,{"$f":"IFERROR((Inventory_List_Table[[#This Row],[Kuantitas dalam Stok]]<=Inventory_List_Table[[#This Row],[Tingkat Penyusunan Ulang]])*(Inventory_List_Table[[#This Row],[Dihentikan?]]=\"\")*MenyorotNilai,0)","v":0},"IN0021","Item 21","Desk 21",{"v":19,"d":"Rp19.00"},112,{"$f":"Inventory_List_Table[[#This Row],[Harga Satuan]]*Inventory_List_Table[[#This Row],[Kuantitas dalam Stok]]","v":{"v":2128,"d":"Rp2,128.00"}},75,11,50]
[null,{"$f":"IFERROR((Inventory_List_Table[[#This Row],[Kuantitas dalam Stok]]<=Inventory_List_Table[[#This Row],[Tingkat Penyusunan Ulang]])*(Inventory_List_Table[[#This Row],[Dihentikan?]]=\"\")*MenyorotNilai,0)","v":0},"IN0022","Item 22","Desk 22",{"v":24,"d":"Rp24.00"},182,{"$f":"Inventory_List_Table[[#This Row],[Harga Satuan]]*Inventory_List_Table[[#This Row],[Kuantitas dalam Stok]]","v":{"v":4368,"d":"Rp4,368.00"}},132,15,150]
[null,{"$f":"IFERROR((Inventory_List_Table[[#This Row],[Kuantitas dalam Stok]]<=Inventory_List_Table[[#This Row],[Tingkat Penyusunan Ulang]])*(Inventory_List_Table[[#This Row],[Dihentikan?]]=\"\")*MenyorotNilai,0)","v":0},"IN0023","Item 23","Desk 23",{"v":29,"d":"Rp29.00"},106,{"$f":"Inventory_List_Table[[#This Row],[Harga Satuan]]*Inventory_List_Table[[#This Row],[Kuantitas dalam Stok]]","v":{"v":3074,"d":"Rp3,074.00"}},142,1,150,"Ya"]
[null,{"$f":"IFERROR((Inventory_List_Table[[#This Row],[Kuantitas dalam Stok]]<=Inventory_List_Table[[#This Row],[Tingkat Penyusunan Ulang]])*(Inventory_List_Table[[#This Row],[Dihentikan?]]=\"\")*MenyorotNilai,0)","v":0},"IN0024","Item 24","Desk 24",{"v":75,"d":"Rp75.00"},173,{"$f":"Inventory_List_Table[[#This Row],[Harga Satuan]]*Inventory_List_Table[[#This Row],[Kuantitas dalam Stok]]","v":{"v":12975,"d":"Rp12,975.00"}},127,9,100]
[null,{"$f":"IFERROR((Inventory_List_Table[[#This Row],[Kuantitas dalam Stok]]<=Inventory_List_Table[[#This Row],[Tingkat Penyusunan Ulang]])*(Inventory_List_Table[[#This Row],[Dihentikan?]]=\"\")*MenyorotNilai,0)","v":0},"IN0025","Item 25","Desk 25",{"v":14,"d":"Rp14.00"},28,{"$f":"Inventory_List_Table[[#This Row],[Harga Satuan]]*Inventory_List_Table[[#This Row],[Kuantitas dalam Stok]]","v":{"v":392,"d":"Rp392.00"}},21,8,50]